bitfinex/quotes_ETHUSD_20240907
["timestamp","ask_amount","ask_price","bid_price","bid_amount"]
[1725667804801,1.3411984,2238.5,2238.1,3.12758]
[1725667805909,0.16421932,2238.4,2238.1,3.12758]
[1725667806392,0.16421932,2238.4,2238.2,3.12747]
[1725667807747,0.16421932,2238.4,2238.1,3.12758]
[1725667808246,0.16421932,2238.4,2238.1,6.25517]
[1725667808559,0.16421932,2238.4,2238.1,3.12758]
[1725667808915,1.06999412,2238.4,2238.1,3.12758]
[1725667809309,1.06999412,2238.4,2238.1,6.25517]
[1725667809547,1.06999412,2238.4,2238.1,6.25515]
[1725667809739,1.06999412,2238.4,2238.2,3.1275]
[1725667810051,1.06999412,2238.4,2238.3,6.25474]
[1725667810052,0.16421932,2238.4,2238.3,6.25474]
[1725667810253,0.16421932,2238.4,2238.3,9.47146643]
[1725667810456,2.0,2238.9,2238.7,3.12668]
[1725667810757,2.0,2238.9,2238.6,3.12689]
[1725667810758,0.16421932,2238.8,2238.6,6.25377]
[1725667811051,0.38958312,2238.8,2238.5,3.12709]
[1725667811260,3.21632868,2238.7,2238.2,6.25484]
[1725667811619,3.21632868,2238.7,2238.2,3.12739]
[1725667811808,0.16421932,2238.6,2238.2,3.12739]
[1725667812239,3.29117932,2238.6,2238.2,3.12739]
[1725667812454,0.74016948,2238.5,2238.1,3.12758]
[1725667813256,0.16421932,2238.4,2238.1,3.12758]
[1725667815340,0.16421932,2238.4,2238.2,3.12749]
[1725667816079,0.16421932,2238.4,2238.3,3.12737]
[1725667816528,2.08941868,2238.6,2238.3,3.12737]
[1725667816730,0.68585219,2238.5,2238.2,3.12749]
[1725667817164,0.68585219,2238.5,2238.3,3.12733]
[1725667817327,0.68585219,2238.5,2238.2,3.12745]
[1725667817533,0.68585219,2238.5,2238.2,3.12744]
[1725667817770,0.68585219,2238.5,2238.2,3.12743]
[1725667818078,0.68585219,2238.5,2238.2,6.25487]
[1725667818292,0.68585219,2238.5,2238.3,3.12734]
[1725667820694,0.68585219,2238.5,2238.0,3.66613444]
[1725667820695,0.27752709,2238.4,2238.0,3.66613444]
[1725667820966,0.27752709,2238.4,2237.9,3.57697]
[1725667820967,0.16431289,2238.3,2237.9,3.57697]
[1725667821294,0.16431289,2238.3,2238.0,3.12777]
[1725667821448,0.89504904,2238.3,2238.0,3.12777]
[1725667823250,0.89504904,2238.3,2238.1,3.12764]
[1725667823446,0.16431289,2238.3,2238.1,3.12764]
[1725667823843,0.16431289,2238.3,2238.0,6.25548]
[1725667824189,0.16431289,2238.3,2238.0,6.25543]
[1725667824545,0.16431289,2238.3,2238.0,3.12771]
[1725667824745,0.16431289,2238.3,2238.0,6.25542]
[1725667825189,0.16431289,2238.3,2238.1,3.12763]
[1725667825843,0.53015276,2238.3,2238.0,3.12771]
[1725667829351,0.16431289,2238.3,2238.0,6.25542]
[1725667829997,0.16431289,2238.3,2238.0,3.12771]
[1725667830194,0.16431289,2238.3,2238.0,6.25544]
[1725667830355,0.16431289,2238.3,2238.0,3.12771]
[1725667830558,0.16431289,2238.3,2238.0,6.25541]
[1725667830757,0.16431289,2238.3,2238.0,3.1277]
[1725667830982,0.53015276,2238.3,2238.0,3.1277]
[1725667831855,0.57660535,2238.3,2238.0,3.1277]
[1725667832051,0.57660535,2238.3,2237.8,0.4491]
[1725667832052,0.08941868,2238.2,2237.8,0.4491]
[1725667832383,2.0,2237.9,2237.6,3.12834]
[1725667832563,2.08941868,2237.9,2237.6,3.12834]
[1725667832954,0.21007534,2237.8,2237.5,3.12847]
[1725667833153,3.42756402,2237.8,2237.4,3.12855]
[1725667836993,3.42756402,2237.8,2237.3,3.1287]
[1725667837308,4.28311642,2237.8,2237.3,3.1287]
[1725667838691,3.12821,2237.7,2237.2,3.12889]
[1725667838871,0.08941868,2237.6,2237.2,3.12889]
[1725667839209,3.40282581,2237.6,2236.9,3.12928]
[1725667839500,3.67852,2237.5,2237.1,3.12904]
[1725667839793,0.29880358,2237.4,2236.9,6.25847]
[1725667840125,1.31975269,2237.4,2237.0,3.12914]
[1725667841911,1.31975269,2237.4,2237.1,3.12902]
[1725667842873,3.12885,2237.3,2236.8,3.12934]
[1725667843216,3.12885,2237.3,2236.6,3.12963]
[1725667843217,2.0,2237.0,2236.6,3.12963]
[1725667843508,0.512912,2236.9,2236.6,3.12963]
[1725667843709,0.72050598,2236.9,2236.6,6.25931]
[1725667844119,0.512912,2236.9,2236.6,3.12963]
[1725667844478,3.21895868,2236.8,2236.2,3.57882]
[1725667844626,3.21895868,2236.8,2236.2,3.13022]
[1725667844627,5.21913868,2236.7,2236.2,3.13022]
[1725667844827,5.42642816,2236.7,2236.2,3.13022]
[1725667845001,6.75419853,2236.6,2236.0,3.13048]
[1725667845336,0.99450935,2236.5,2236.1,3.13041]
[1725667845483,1.20179883,2236.5,2236.1,3.13041]
[1725667845896,1.20179883,2236.5,2236.0,3.13048]
[1725667846134,1.20179883,2236.5,2236.0,6.26099]
[1725667846321,1.20179883,2236.5,2236.1,3.13045]
[1725667846522,0.79559974,2236.4,2236.1,3.13045]
[1725667847041,0.20728948,2236.3,2236.1,3.13045]
[1725667847494,0.20728948,2236.3,2236.2,3.13031]
[1725667847696,0.08941868,2236.5,2236.2,3.13031]
[1725667847999,0.08941868,2236.6,2236.2,3.13031]
[1725667848197,0.08941868,2236.6,2236.0,3.13048]
[1725667848198,0.20641071,2236.4,2236.0,6.26094]
[1725667848404,4.4164914,2236.6,2236.0,3.13046]
[1725667848643,0.20641071,2236.3,2236.0,3.13046]
[1725667848798,4.4164914,2236.6,2236.0,3.13046]
[1725667848998,0.20641071,2236.2,2236.0,3.13046]
[1725667849455,4.4164914,2236.6,2236.0,3.13046]
[1725667849615,0.20641071,2236.1,2236.0,3.13046]
[1725667849822,0.08941868,2236.4,2236.1,3.13037]
[1725667850616,2.0,2236.7,2236.1,3.13037]
[1725667850617,0.08941868,2236.6,2236.1,3.13037]
[1725667850845,0.20641071,2236.3,2236.1,3.13037]
[1725667851049,0.08941868,2236.6,2236.1,3.13037]
[1725667851346,0.9737624,2236.6,2236.2,3.13029]
[1725667852204,0.9737624,2236.6,2236.2,6.26052]
[1725667852408,0.9737624,2236.6,2236.2,3.13023]
[1725667852615,0.9737624,2236.6,2236.2,6.26046]
[1725667853162,0.9737624,2236.6,2236.2,6.26047]
[1725667853443,0.9737624,2236.6,2236.2,3.13023]
[1725667853644,0.29737624,2236.5,2236.2,6.26047]
[1725667853808,0.29737624,2236.5,2236.2,6.26046]
[1725667856260,0.29737624,2236.5,2236.2,3.13023]
[1725667856420,0.29737624,2236.5,2236.2,6.26047]
[1725667858955,0.08941868,2236.6,2236.3,3.13015]
[1725667859515,0.08941868,2236.6,2236.2,3.13023]
[1725667860176,0.08941868,2236.6,2236.2,6.26047]
[1725667860759,0.08941868,2236.6,2236.3,3.13016]
[1725667861575,0.08941868,2236.6,2236.2,3.13023]
[1725667861731,0.08941868,2236.6,2236.2,6.26046]
[1725667861931,0.08941868,2236.6,2236.2,3.13023]
[1725667863026,0.08941868,2236.6,2236.2,6.26047]
[1725667863222,0.08941868,2236.6,2236.3,3.13014]
[1725667863471,0.18558589,2237.4,2236.3,3.08337121]
[1725667863472,2.0,2237.1,2236.3,3.08337121]
[1725667863689,2.0,2237.1,2237.0,6.25838]
[1725667864273,2.0,2237.5,2237.3,3.12873]
[1725667864431,3.62444853,2237.8,2236.9,0.08940229]
[1725667864432,2.0,2237.8,2237.6,3.12833]
[1725667864653,2.0,2237.8,2237.6,3.12827]
[1725667865387,2.0,2237.8,2237.4,3.12852]
[1725667865586,0.08941868,2237.7,2237.4,3.12852]
[1725667865771,0.6608054,2237.7,2237.3,3.1287]
[1725667865975,0.19832335,2237.6,2237.2,3.12882]
[1725667866185,0.08941868,2237.5,2237.2,3.12877]
[1725667866497,2.08941868,2237.5,2237.1,3.12898]
[1725667866644,0.19832335,2237.4,2237.1,3.12898]
[1725667866973,0.19832335,2237.4,2237.2,3.12889]
[1725667867200,2.08941868,2237.5,2237.2,6.25778]
[1725667867201,2.0,2237.5,2237.2,6.25778]
[1725667867372,2.0,2237.5,2237.2,3.12889]
[1725667868008,2.0,2237.5,2237.3,3.12876]
[1725667868218,0.08941868,2238.2,2237.3,3.12876]
[1725667868219,2.0,2237.9,2237.3,3.12876]
[1725667868383,0.63941868,2237.8,2237.3,3.12876]
[1725667868591,2.0,2237.6,2237.2,6.25773]
[1725667868925,2.0,2237.6,2237.3,3.12876]
[1725667869416,0.19832335,2237.5,2237.3,3.12876]
[1725667870710,0.28774203,2237.5,2237.2,3.12884]
[1725667870895,0.08941868,2237.5,2237.2,3.12884]
[1725667871276,0.08941868,2237.5,2237.1,3.12904]
[1725667871509,0.55,2237.4,2237.1,3.12904]
[1725667872674,2.0,2237.6,2237.2,3.12885]
[1725667872877,2.0,2237.6,2237.4,3.12862]
[1725667875223,0.26394187,2237.8,2237.4,6.25718]
[1725667875427,0.26394187,2237.8,2237.1,2.3376]
[1725667875428,2.0,2238.2,2237.5,2.3376]
[1725667875634,0.1146945,2239.4,2238.2,3.12751]
[1725667875635,2.0,2238.5,2238.2,3.12751]
[1725667875982,2.0,2238.5,2238.1,3.12763]
[1725667876294,0.08941868,2238.4,2237.9,3.12783]
[1725667876502,2.0,2238.2,2237.7,3.1281]
[1725667876827,0.08941868,2238.1,2237.8,3.12798]
[1725667877416,2.0,2238.5,2237.8,3.05258088]
[1725667877616,2.0,2238.5,2238.3,3.12737]
[1725667877617,2.08941868,2238.5,2238.3,3.12737]
[1725667877820,2.0,2238.5,2238.3,3.12737]
[1725667878031,2.0,2238.5,2238.2,3.12749]
[1725667881020,2.0,2238.5,2238.1,3.12759]
[1725667881237,2.0,2238.5,2238.1,6.25517]
[1725667881883,2.0,2238.5,2238.2,3.1275]
[1725667882319,2.0,2238.5,2238.3,3.12735]
[1725667882723,2.0,2238.5,2238.2,3.1275]
[1725667883217,2.0,2238.5,2238.2,6.25494]
[1725667884220,2.0,2238.5,2238.2,3.12744]
[1725667884420,2.0,2238.5,2238.1,3.12763]
[1725667884621,2.0,2238.5,2238.0,3.12769]
[1725667884809,0.08941868,2238.4,2238.0,6.2554]
[1725667885011,0.08941868,2238.4,2238.0,3.12769]
[1725667886023,0.20179931,2238.3,2237.9,3.12785]
[1725667886228,2.0,2238.2,2237.8,3.12799]
[1725667886415,2.2291218,2238.2,2237.8,3.12799]
[1725667886615,0.20282041,2238.1,2237.8,3.12799]
[1725667887111,0.20282041,2238.1,2237.8,6.25599]
[1725667887312,2.2291218,2238.2,2237.9,3.1279]
[1725667887516,0.20282041,2238.0,2237.9,3.1279]
[1725667887741,2.0,2238.2,2237.9,3.1279]
[1725667887945,0.20282041,2238.0,2237.9,3.1279]
[1725667888465,2.0,2238.2,2237.9,3.1279]
[1725667888616,0.20282041,2238.0,2237.8,3.12799]
[1725667888817,2.0,2238.2,2237.8,6.25599]
[1725667889145,2.0,2238.2,2237.8,3.12799]
[1725667889452,2.0,2238.2,2237.8,6.25599]
[1725667892773,2.0,2238.2,2237.8,3.12799]
[1725667893396,2.0,2238.2,2237.8,6.25599]
[1725667893898,2.0,2238.2,2237.9,3.12793]
[1725667895098,2.0,2238.2,2237.9,5.53073]
[1725667895418,2.0,2238.5,2238.0,3.12767]
[1725667895703,0.63941868,2238.4,2238.0,6.25537]
[1725667896118,0.20282041,2238.3,2238.0,6.25537]
[1725667896410,0.20282041,2238.3,2238.0,3.12767]
[1725667896789,0.20282041,2238.3,2238.0,6.25539]
[1725667896999,0.20282041,2238.3,2238.1,3.1276]
[1725667897318,0.20282041,2238.3,2237.8,3.12794]
[1725667897319,0.20282041,2238.3,2238.2,5.61967195]
[1725667897518,0.1146945,2239.4,2239.2,3.12599]
[1725667897726,0.1146945,2239.4,2239.3,8.74404558]
[1725667897875,0.1146945,2239.4,2239.3,12.31861558]
[1725667898592,0.1146945,2239.4,2239.3,19.06903411]
[1725667898593,4.5e-06,2239.4,2239.3,19.06903411]
[1725667898798,2.0,2240.5,2240.2,3.12467]
[1725667899672,2.0,2240.5,2240.2,6.24934]
[1725667899917,2.0,2240.5,2240.2,3.12467]
[1725667900071,2.0,2240.8,2240.2,0.08927404]
[1725667900277,0.1,2242.2,2240.2,0.08927404]
[1725667900278,2.08941868,2241.2,2240.9,3.12374]
[1725667900476,2.0,2241.2,2241.0,3.12351]
[1725667900672,2.0,2241.2,2240.9,3.12374]
[1725667900975,2.28587436,2243.5,2240.5,6.74869853]
[1725667900976,0.18081891,2242.7,2241.0,2.6428]
[1725667901222,1.95866521,2243.1,2243.0,6.24164]
[1725667901528,0.1146945,2243.9,2242.6,3.12124]
[1725667901529,2.0,2243.2,2242.6,3.12124]
[1725667901828,2.0,2243.2,2243.0,3.12082]
[1725667901829,1.52183424,2243.1,2243.0,3.12082]
[1725667901980,3.73914303,2243.9,2243.1,3.12059]
[1725667901981,2.0,2243.8,2243.1,3.12059]
[1725667902174,2.0,2243.8,2243.2,3.12052]
[1725667902580,2.0,2243.8,2243.0,3.12076]
[1725667902878,2.0,2243.8,2241.8,3.12238]
[1725667902879,2.0,2243.2,2242.4,3.12154]
[1725667903324,2.0,2243.6,2242.6,6.2426]
[1725667903615,2.0,2243.2,2242.6,3.12125]
[1725667903776,2.0,2243.2,2242.2,3.12185]
[1725667903975,2.0,2242.9,2242.0,6.24427]
[1725667904171,2.0,2242.9,2242.1,3.12207]
[1725667904814,2.0,2242.9,2242.0,3.12212]
[1725667904815,2.0,2242.6,2242.0,3.12212]
[1725667905020,0.55,2242.5,2242.0,3.12212]
[1725667905223,0.45649272,2242.4,2242.0,3.12212]
[1725667905421,0.45649272,2242.4,2241.8,3.12243]
[1725667905623,2.55,2242.3,2241.6,3.12267]
[1725667905817,0.20103705,2242.2,2241.7,3.12261]
[1725667906044,2.55,2242.3,2241.7,3.12261]
[1725667906353,0.2805,2242.2,2241.5,3.12279]
[1725667906520,0.2805,2242.2,2241.2,2.4931]
[1725667906521,2.0,2242.0,2241.2,5.61634]
[1725667906720,2.0,2242.0,2241.3,3.12315]
[1725667907039,1.02986277,2241.9,2241.4,3.12304]
[1725667907211,1.02986277,2241.9,2241.4,3.123]
[1725667907409,0.82504176,2241.9,2241.4,3.123]
[1725667909613,2.0,2242.3,2241.5,0.08921849]
[1725667909813,0.74991916,2242.2,2241.6,3.12265]
[1725667910420,0.74991916,2242.2,2241.8,3.12237]
[1725667910421,0.19991916,2242.2,2241.8,3.12237]
[1725667910611,0.18646722,2242.1,2242.0,3.12209]
[1725667910910,2.0,2242.9,2242.0,6.24421]
[1725667911110,2.0,2242.9,2242.0,3.12209]
[1725667911411,2.0,2242.9,2241.9,0.08919809]
[1725667911412,0.18646722,2242.8,2241.9,0.08919809]
[1725667911618,0.18025165,2242.7,2242.4,6.2431]
[1725667911837,0.18025165,2242.7,2242.4,6.24309]
[1725667912019,2.0,2243.4,2242.5,3.1215]
[1725667912232,0.18066195,2243.3,2242.5,3.1215]
[1725667912507,0.18066195,2243.3,2242.7,3.12119]
[1725667912707,2.0,2243.7,2242.7,3.12119]
[1725667912933,2.0,2243.7,2242.7,6.24231]
[1725667913135,2.0,2243.7,2242.8,3.21020641]
[1725667913320,2.0,2243.7,2242.7,3.21028308]
[1725667913321,0.18066195,2243.6,2242.7,3.21028308]
[1725667913527,2.0,2243.3,2242.5,5.61455]
[1725667913820,2.0,2243.3,2242.6,0.08917317]
[1725667914126,2.0,2243.3,2242.7,3.12122]
[1725667914848,2.0,2243.3,2242.6,0.08917317]
[1725667914849,0.55,2243.2,2242.6,0.08917317]
[1725667915053,0.255,2243.1,2242.6,3.21045317]
[1725667916163,0.255,2243.1,2242.4,6.24314]
[1725667916323,0.1146945,2243.9,2242.5,3.21059307]
[1725667916522,0.1146945,2243.9,2242.4,3.12156]
[1725667916523,0.18150561,2243.0,2242.4,3.12156]
[1725667916763,0.1146945,2243.9,2242.4,3.12156]
[1725667917159,2.0,2243.5,2242.5,3.12149]
[1725667917364,2.0,2243.5,2242.5,3.21066301]
[1725667917661,0.18150561,2243.4,2242.6,3.12137]
[1725667917961,0.08150561,2243.4,2242.6,3.12137]
[1725667918264,2.1146945,2243.9,2242.6,3.12137]
[1725667918446,0.17934435,2243.3,2242.6,3.12129]
[1725667918652,0.55,2243.8,2242.6,3.12129]
[1725667918963,0.44583723,2243.7,2242.6,3.12129]
[1725667919171,0.55,2243.6,2242.6,3.12129]
[1725667919665,0.17936778,2243.5,2242.6,3.12129]
[1725667919879,0.55,2243.4,2242.6,3.12129]
[1725667920078,0.55,2243.4,2242.6,6.24255]
[1725667920288,0.26646945,2243.7,2242.6,3.12126]
[1725667920289,0.17936778,2243.3,2242.6,3.12126]
[1725667920483,0.55,2243.6,2242.6,3.12126]
[1725667920691,0.17936778,2243.2,2242.6,3.12126]
[1725667921001,0.55,2243.6,2242.6,3.12126]
[1725667921188,0.55,2243.6,2242.5,0.08917292]
[1725667921500,0.17936778,2243.5,2242.7,3.12123]
[1725667921656,0.55,2243.4,2242.7,6.24239]
[1725667921864,0.26646945,2243.7,2242.8,3.21015755]
[1725667922196,0.17936778,2243.3,2242.5,3.12141]
[1725667922350,2.0,2243.6,2242.2,3.12183]
[1725667922687,2.0,2243.6,2242.1,6.06369]
[1725667922688,0.22664695,2243.5,2242.3,3.21086436]
[1725667922982,0.40601475,2243.5,2242.4,3.12164]
[1725667923196,0.55,2243.4,2242.3,6.33256436]
[1725667923358,0.55,2243.4,2242.3,3.21086436]
[1725667923561,0.55,2243.4,2242.3,6.24337]
[1725667923774,0.1793678,2243.3,2242.4,0.08918179]
[1725667923980,0.1793678,2243.3,2242.3,6.24337]
[1725667923981,0.55,2243.2,2242.3,3.21086167]
[1725667924413,0.17909834,2243.1,2242.4,3.12151]
[1725667924682,0.17909834,2243.1,2242.5,3.21064828]
[1725667924898,0.55,2243.2,2242.6,3.12136]
[1725667925093,0.17908662,2243.0,2242.6,3.12136]
[1725667925293,0.17311707,2243.1,2242.6,3.12136]
[1725667925491,0.55,2243.4,2242.6,3.12136]
[1725667925719,0.17112253,2243.0,2242.6,3.12136]
[1725667926015,0.55,2243.4,2242.6,3.12136]
[1725667926173,0.17112253,2242.9,2242.6,3.12129]
[1725667926371,0.55,2242.8,2241.8,3.89212765]
[1725667926571,2.0,2242.9,2241.6,3.12264]
[1725667926757,0.17111082,2242.7,2241.6,3.12264]
[1725667927100,2.72111082,2242.6,2241.5,3.1229]
[1725667927811,2.79884673,2242.6,2241.5,3.12286]
[1725667929059,2.79884673,2242.6,2241.2,3.12324]
[1725667929264,0.27988467,2242.5,2241.2,3.12324]
[1725667929503,0.55,2242.4,2241.4,3.12297]
[1725667929706,0.72013793,2242.4,2241.5,3.12289]
[1725667930186,0.72013793,2242.4,2241.7,3.12254]
[1725667930388,0.72013793,2242.4,2241.4,3.12291]
[1725667930581,2.0,2242.3,2241.2,3.12319]
[1725667930755,0.82201379,2242.2,2241.2,3.12319]
[1725667931120,0.99226897,2242.2,2241.2,3.12319]
[1725667931284,0.99226897,2242.2,2241.0,3.1235]
[1725667931489,0.99226897,2242.2,2240.6,6.24819]
[1725667931490,2.0,2241.8,2240.6,6.24819]
[1725667931678,2.0,2241.8,2240.6,3.12407]
[1725667931880,2.0,2241.8,2240.5,2.4675]
[1725667931881,0.55,2241.7,2240.5,3.1243]
[1725667932108,0.255,2241.6,2240.5,3.1243]
[1725667932435,0.55,2241.5,2240.5,3.21355582]
[1725667932707,0.71991512,2241.5,2240.5,3.1243]
[1725667932909,0.71991512,2241.5,2240.5,3.12422]
[1725667933121,0.55,2241.5,2240.5,3.12422]
[1725667933279,0.55,2241.5,2240.7,3.124]
[1725667934111,0.55,2241.5,2240.5,6.24842]
[1725667934320,0.55,2241.5,2240.5,3.1242]
[1725667934478,2.55,2241.5,2240.3,3.12448]
[1725667934863,2.0,2241.2,2240.3,3.12456]
[1725667935126,0.55,2241.1,2240.3,3.12456]
[1725667935276,0.71991512,2241.1,2240.3,3.12456]
[1725667935896,2.0,2241.2,2240.3,3.12456]
[1725667936620,2.0,2241.2,2240.3,3.1245]
[1725667936812,2.0,2241.2,2240.3,6.249]
[1725667937114,0.2805,2241.4,2240.4,0.08927075]
[1725667937285,0.2805,2241.4,2240.3,3.74938]
[1725667937286,0.16170621,2241.1,2240.3,3.12448]
[1725667937477,6.93,2241.9,2240.3,3.12448]
[1725667937680,2.0,2241.5,2240.4,3.12441]
[1725667937979,0.55,2241.4,2240.4,3.12441]
[1725667938201,0.255,2241.3,2240.4,3.12441]
[1725667938433,0.55,2241.2,2240.4,3.12443]
[1725667938644,2.55,2241.2,2239.9,3.57363]
[1725667938799,2.55,2241.2,2240.0,3.12499]
[1725667938995,0.40476781,2241.1,2239.9,3.57363]
[1725667939225,0.55,2241.0,2239.9,3.57363]
[1725667939549,0.69976781,2241.0,2239.9,3.57363]
[1725667939747,2.0,2240.8,2239.9,0.4486]
[1725667940038,0.55,2240.7,2239.7,3.12531]
[1725667940246,2.0,2240.5,2239.6,3.12542]
[1725667940543,0.55,2240.4,2239.4,6.25143]
[1725667940744,0.69976781,2240.4,2239.4,3.1257]
[1725667940941,0.69976781,2240.4,2239.4,3.12581]
[1725667941108,0.69976781,2240.4,2239.5,3.12569]
[1725667941314,0.26997678,2240.3,2239.5,3.12569]
[1725667941517,0.55,2240.2,2239.4,6.25155]
[1725667941722,0.55,2240.2,2239.5,3.12568]
[1725667942100,0.55,2240.2,2239.6,3.12553]
[1725667942604,0.55,2240.2,2239.4,6.25144]
[1725667942837,0.55,2240.2,2239.4,3.1257]
[1725667943201,0.55,2240.2,2239.4,6.25146]
[1725667943397,0.55,2240.2,2239.4,3.1257]
[1725667944001,0.55,2240.2,2239.4,6.25146]
[1725667944202,0.55,2240.2,2239.4,3.1257]
[1725667944400,2.55,2240.2,2239.4,3.1257]
[1725667944730,0.28199768,2240.1,2239.4,3.1257]
[1725667945045,2.0,2239.9,2239.0,3.12629]
[1725667945257,2.0,2239.9,2238.8,3.12654]
[1725667945457,2.0,2239.6,2238.8,3.12654]
[1725667945805,0.69862854,2239.5,2238.6,6.25373]
[1725667946004,0.26986285,2239.4,2238.6,3.12685]
[1725667946220,0.55,2239.3,2238.6,3.12685]
[1725667946416,2.55,2239.3,2238.5,3.12705]
[1725667947717,2.55,2239.3,2238.4,3.12712]
[1725667948333,0.14862854,2239.2,2238.5,3.12702]
[1725667948627,0.14862854,2239.2,2238.5,3.12701]
[1725667948628,0.28198629,2239.2,2238.5,3.12701]
[1725667948867,0.55,2239.1,2238.5,3.12701]
[1725667949213,0.69862854,2239.1,2238.5,3.12701]
[1725667949414,0.55,2239.1,2238.6,3.12693]
[1725667949665,0.83319863,2239.1,2238.6,3.12693]
[1725667949882,0.14862854,2239.0,2238.4,6.25422]
[1725667950156,0.83319863,2239.1,2238.4,6.25422]
[1725667950157,0.55,2238.9,2238.4,3.1271]
[1725667950453,0.14862854,2238.9,2238.4,3.1271]
[1725667951251,0.55,2239.0,2238.4,3.1271]
[1725667951450,0.55,2239.0,2238.4,3.0771]
[1725667952165,0.55,2239.0,2238.2,3.1274]
[1725667952323,0.55,2239.0,2237.1,1.3933899]
[1725667952324,2.0,2238.6,2237.6,3.12831]
[1725667952528,4.81510186,2238.4,2237.7,3.12811]
[1725667952752,4.81510186,2238.4,2237.8,3.12804]
[1725667953041,0.69862854,2238.3,2237.7,3.12811]
[1725667953848,0.69862854,2238.3,2237.6,3.12834]
[1725667954059,0.55137304,2238.2,2237.6,3.12834]
[1725667954232,0.55,2238.1,2237.6,3.12834]
[1725667954425,0.69670011,2238.1,2237.6,3.12834]
[1725667956063,0.69670011,2238.1,2237.5,6.25678]
[1725667956360,0.69670011,2238.1,2237.6,3.12831]
[1725667956531,0.69670011,2238.1,2237.7,3.12818]
[1725667957395,0.69670011,2238.1,2237.6,3.12828]
[1725667957547,0.02470791,2238.2,2237.6,3.12828]
[1725667957724,0.1418101,2238.0,2237.6,3.12828]
[1725667957926,0.02470791,2238.2,2237.6,3.12828]
[1725667958228,0.1418101,2237.9,2237.6,3.12828]
[1725667958461,0.02470791,2238.2,2237.6,3.12828]
[1725667958677,0.1418101,2237.8,2237.6,3.12828]
[1725667958850,0.02470791,2238.2,2237.6,3.12828]
[1725667959045,0.02470791,2238.2,2237.6,6.25655]
[1725667959251,0.1418101,2238.1,2237.6,6.25655]
[1725667959575,0.1418101,2238.1,2237.7,3.1282]
[1725667961073,0.1418101,2238.1,2237.6,3.12827]
[1725667962148,4.95691196,2238.1,2237.4,6.25702]
[1725667962398,0.49816199,2238.0,2237.4,6.25705]
[1725667962674,0.13831871,2237.9,2237.4,6.25704]
[1725667962984,0.13831871,2237.9,2237.3,3.12876]
[1725667963279,0.13831871,2237.9,2237.2,6.25763]
[1725667963496,0.13831871,2237.9,2237.2,3.1288]
[1725667963643,0.68347697,2237.9,2237.2,3.1288]
[1725667963842,0.55,2237.8,2237.2,3.1288]
[1725667964077,5.36510186,2237.8,2237.2,3.1289]
[1725667964246,0.13831871,2237.7,2237.2,3.1289]
[1725667964884,0.13831871,2237.7,2237.0,3.12908]
[1725667965106,0.74317659,2237.7,2237.0,3.12908]
[1725667965914,0.74317659,2237.7,2236.8,3.12937]
[1725667966126,4.81510186,2237.5,2236.9,3.12931]
[1725667966419,4.81510186,2237.5,2236.8,3.12937]
[1725667966420,0.55,2237.4,2236.8,3.12937]
[1725667966617,1.10019137,2237.4,2236.8,3.12937]
[1725667966776,0.13681182,2237.3,2236.8,3.12937]
[1725667967273,2.13681182,2237.3,2236.6,3.12963]
[1725667967474,0.55,2237.2,2236.4,3.12992]
[1725667967912,0.13681182,2237.1,2236.4,3.12992]
[1725667968069,0.405493,2237.1,2236.5,3.12982]
[1725667969797,0.405493,2237.1,2236.6,3.12974]
[1725667970115,5.22059486,2237.1,2236.4,3.12992]
[1725667970279,5.22059486,2237.1,2236.4,6.25988]
[1725667970486,5.22059486,2237.1,2236.5,3.12988]
[1725667970696,0.57705949,2237.0,2236.5,3.12988]
[1725667971110,0.71322347,2237.0,2236.5,3.12988]
[1725667972919,0.13616398,2237.0,2236.5,3.12988]
[1725667973122,6.81510186,2237.7,2236.9,3.12933]
[1725667973623,6.81510186,2237.7,2236.7,3.12952]
[1725667974122,6.81510186,2237.7,2236.8,3.12944]
[1725667974292,6.81510186,2237.7,2237.0,3.12909]
[1725667974293,0.68151019,2237.6,2237.0,3.12909]
[1725667974480,0.68151019,2237.6,2236.9,3.12931]
[1725667974926,0.68151019,2237.6,2237.0,3.12917]
[1725667975285,0.68151019,2237.6,2236.9,3.12931]
[1725667975717,0.55,2237.5,2236.9,3.12931]
[1725667975922,1.35466121,2237.5,2236.8,3.12945]
[1725667976129,1.35466121,2237.5,2236.7,3.1295]
[1725667976335,1.35466121,2237.5,2236.8,3.12944]
[1725667976543,6.81510186,2237.4,2236.4,3.13001]
[1725667976834,0.55,2237.3,2236.4,3.12996]
[1725667977125,0.55,2237.3,2236.3,3.13009]
[1725667977126,0.55,2237.3,2236.3,6.26018]
[1725667977337,0.55,2237.3,2236.5,3.12988]
[1725667977624,5.50495268,2237.4,2236.5,6.2597]
[1725667977828,5.50495268,2237.4,2236.5,3.12982]
[1725667979599,5.50495268,2237.4,2236.4,3.13002]
[1725667979600,0.55,2237.3,2236.4,3.13002]
[1725667980531,0.55,2237.3,2236.5,3.12987]
[1725667980836,0.73182325,2237.2,2236.4,3.13002]
[1725667980995,0.55,2237.1,2236.4,3.13002]
[1725667981391,0.55,2237.1,2236.4,3.12996]
[1725667981392,0.12632798,2237.0,2236.4,3.12996]
[1725667981695,0.12632798,2237.0,2236.1,0.08942955]
[1725667981897,4.81510186,2237.7,2236.8,3.1294]
[1725667982130,0.12211705,2237.6,2237.3,3.12863]
[1725667982441,0.75765636,2238.0,2237.2,6.25767]
[1725667982734,4.81510186,2238.6,2237.3,3.21811179]
[1725667982949,6.81510186,2239.2,2237.9,2.4528]
[1725667983100,6.81510186,2239.2,2238.5,3.12701]
[1725667983101,2.0,2239.2,2238.5,3.12701]
[1725667983300,2.0,2239.2,2238.6,3.12693]
[1725667983529,6.81510186,2239.5,2238.6,3.12693]